Department family,Entity,Date,Expense type,Expense area,Supplier,Transaction number,Amount,VAT registration number
Dept of Health,MHRA,06/08/2018,Application Services and Maintenance,Transformation,Accenture (UK) Limited,3003401098,"220,664.57 ",788629066
Dept of Health,MHRA,06/08/2018,Application Services and Maintenance,Transformation,Cognizant Worldwide Limited,CW101-0000118095,"54,297.60 ",123382928
Dept of Health,MHRA,06/08/2018,Infrastructure Services and Maintenance,Transformation,Comparex UK Ltd,180002582VRUKA,"52,821.20 ",888849726
Dept of Health,MHRA,09/08/2018,Library & Periodical Subscriptions,Communications,ProQuest LLC,70524484,"50,152.90 ",
Dept of Health,MHRA,10/08/2018,Assets Under Construction - Plant & Equipment,Operations,Becton Dickinson UK Ltd,180074600,"174,600.00 ",718053936
Dept of Health,MHRA,10/08/2018,Electricity,Operations,EDF Energy,4447354,"69,792.71 ",523041202
Dept of Health,MHRA,10/08/2018,Professional Memberships,Transformation,Gartner UK Limited,20094943,"60,960.00 ",635878884
Dept of Health,MHRA,10/08/2018,Infrastructure Services and Maintenance,Transformation,NTT Data UK Ltd,4012131,"138,788.60 ",159334590
Dept of Health,MHRA,10/08/2018,Application Services and Maintenance,Finance & Procurement,Redrock Consulting Ltd,7883,"93,224.14 ",862247715
Dept of Health,MHRA,10/08/2018,Infrastructure Services and Maintenance,Transformation,Redrock Consulting Ltd,7889,"74,408.42 ",862247715
Dept of Health,MHRA,15/08/2018,Laboratory Equipment Repairs and Maintenance,Operations,Becton Dickinson UK Ltd,180073484,"31,818.76 ",718053936
Dept of Health,MHRA,15/08/2018,"Advertising, publicity & promotion",Communications,NLA Media Access,Q411584,"32,750.54 ",661865215
Dept of Health,MHRA,15/08/2018,"Service, Integration & Management (SIAM)",Transformation,Redrock Consulting Ltd,7890,"51,045.89 ",862247715
Dept of Health,MHRA,17/08/2018,Travel and Subsistence,Finance & Procurement,Clarity Travel Management,MHRA0028,"173,451.99 ",197694731
Dept of Health,MHRA,17/08/2018,Assets Under Construction - Plant & Equipment,Operations,Commercial Services UK Ltd,INV-0760,"66,342.43 ",130597616
Dept of Health,MHRA,17/08/2018,Security,Operations,ISS Facility Services Limited,SLINVS/44007118,"50,767.98 ",945751887
Dept of Health,MHRA,17/08/2018,Assets Under Construction - Plant & Equipment,Operations,Tyco Fire and Intergrated Solutions (UK) Limited,TY026224,"56,711.72 ",413633086
Dept of Health,MHRA,20/08/2018,Laboratory Equipment Repairs and Maintenance,Operations,Agilent Technologies LDA UK Ltd,1770066286,"26,124.91 ",180567396
Dept of Health,MHRA,20/08/2018,Solicitors,Policy,Crown Prosecution Service,5355122,"70,235.50 ",888823164
Dept of Health,MHRA,22/08/2018,Application Services and Maintenance,Transformation,Accenture (UK) Limited,3003401530,"26,500.01 ",788629066
Dept of Health,MHRA,22/08/2018,Application Services and Maintenance,Transformation,Accenture (UK) Limited,3003401532,"349,672.26 ",788629066
Dept of Health,MHRA,22/08/2018,Application Services and Maintenance,Transformation,Accenture (UK) Limited,3003402809,"86,888.40 ",788629066
Dept of Health,MHRA,22/08/2018,Water,Operations,Castle Water,TE00087733,"-33,175.43 ",189775040
Dept of Health,MHRA,22/08/2018,Water,Operations,Castle Water,TWSA000177,"37,165.51 ",189775040
Dept of Health,MHRA,22/08/2018,Application Services and Maintenance,Transformation,Digital Business Design LLP,MHRA04,"58,500.00 ",265660486
Dept of Health,MHRA,22/08/2018,Help desk and end user support,Transformation,IDE Group Manage Limited,5002213,"33,619.99 ",123385037
Dept of Health,MHRA,22/08/2018,Help desk and end user support,Transformation,IDE Group Manage Limited,5002216,"39,650.00 ",123385037
Dept of Health,MHRA,24/08/2018,Application Services and Maintenance,Transformation,Accenture (UK) Limited,3003403306,"210,677.53 ",788629066
Dept of Health,MHRA,29/08/2018,Application Services and Maintenance,Transformation,Red Ant Digital Ltd,INV-07908,"39,540.00 ",123388322
Dept of Health,MHRA,29/08/2018,Application Services and Maintenance,Transformation,Redrock Consulting Ltd,7892,"61,892.96 ",862247715
Dept of Health,MHRA,30/08/2018,Software & Licences,Finance & Procurement,Softcat plc,INV01940939,"65,520.00 ",491848503
Dept of Health,MHRA,30/08/2018,Software & Licences,Transformation,Softcat plc,INV01965444,"228,546.72 ",491848503
Dept of Health,MHRA,31/08/2018,Water,Operations,Castle Water,TE00087641,"37,165.51 ",189775040
Dept of Health,MHRA,31/08/2018,Laboratory Equipment Repairs and Maintenance,Standards,Freeze Drying Services,4196,"50,626.49 ",528787102
Dept of Health,MHRA,31/08/2018,IT Database Subscriptions,Clinical Practice Research Datalink,Public Health England,6350268,"54,885.60 ",888849628
